bitfinex/quotes_SOLUSD_20230904
["timestamp","ask_amount","ask_price","bid_price","bid_amount"]
[1693840338509,220.09932937,19.292,19.276,0.809]
[1693840338906,20.0,19.291,19.276,0.809]
[1693840339104,45.71032937,19.291,19.276,0.809]
[1693840339300,111.233,19.291,19.276,6.515]
[1693840339515,111.233,19.291,19.276,0.809]
[1693840340015,136.94332937,19.291,19.272,0.809]
[1693840340217,136.94332937,19.291,19.265,31.41932937]
[1693840340218,34.225,19.284,19.265,25.71032937]
[1693840340519,75.0,19.283,19.268,0.809]
[1693840340723,34.233,19.279,19.268,0.809]
[1693840340911,8.091,19.279,19.268,3.424]
[1693840341421,8.091,19.279,19.268,0.809]
[1693840341804,20.0,19.283,19.268,3.424]
[1693840342005,20.75436,19.284,19.268,3.424]
[1693840342225,8.088,19.287,19.268,3.424]
[1693840342524,34.219,19.287,19.268,3.424]
[1693840342709,34.219,19.287,19.268,29.13432937]
[1693840342906,8.088,19.287,19.274,3.423]
[1693840343105,8.087,19.291,19.274,9.13]
[1693840343321,8.087,19.291,19.275,55.0]
[1693840343525,34.213,19.291,19.279,3.423]
[1693840343918,25.71032937,19.298,19.279,3.423]
[1693840343919,8.085,19.293,19.279,3.423]
[1693840344216,26.118,19.297,19.279,58.423]
[1693840344820,8.085,19.293,19.279,58.423]
[1693840345015,26.12,19.296,19.279,58.423]
[1693840345239,25.71032937,19.303,19.279,58.423]
[1693840345424,34.203,19.296,19.279,58.423]
[1693840346416,55.0,19.295,19.279,3.423]
[1693840346615,34.214,19.291,19.279,3.423]
[1693840346924,8.087,19.291,19.279,9.128]
[1693840347815,8.087,19.291,19.283,3.421]
[1693840348216,8.086,19.293,19.283,9.125]
[1693840348411,26.122,19.295,19.284,55.0]
[1693840348613,56.998,19.299,19.283,9.125]
[1693840348821,8.085,19.294,19.288,0.808]
[1693840349519,25.71032937,19.301,19.288,0.808]
[1693840349724,92.0576,19.315,19.288,0.808]
[1693840349931,8.08,19.307,19.288,55.808]
[1693840350227,2.29098851,19.306,19.288,55.808]
[1693840350831,10.37098851,19.306,19.288,55.808]
[1693840351023,8.08,19.306,19.288,55.808]
[1693840351217,8.08,19.306,19.288,0.808]
[1693840351218,33.79032937,19.306,19.288,0.808]
[1693840351524,25.71032937,19.305,19.288,0.808]
[1693840351828,1.53472855,19.309,19.288,0.808]
[1693840352015,25.71032937,19.312,19.288,0.808]
[1693840352016,1.53472855,19.31,19.288,26.51832937]
[1693840352328,1.53472855,19.31,19.289,45.71032937]
[1693840352519,27.62172855,19.32,19.296,19.432]
[1693840352720,8.076,19.315,19.303,0.808]
[1693840352909,34.169,19.315,19.303,0.808]
[1693840353315,0.5108109,19.314,19.303,0.808]
[1693840353624,34.169,19.315,19.303,0.808]
[1693840353625,8.077,19.313,19.303,0.808]
[1693840353930,56.943,19.318,19.303,0.808]
[1693840353931,26.089,19.318,19.303,3.418]
[1693840354127,0.93539263,19.317,19.303,3.418]
[1693840354315,0.93539263,19.317,19.303,9.116]
[1693840354515,9.01039263,19.317,19.304,55.0]
[1693840354732,0.93539263,19.317,19.307,0.807]
[1693840354930,8.075,19.319,19.307,0.807]
[1693840355116,1.57899077,19.318,19.307,0.807]
[1693840355431,1.57899077,19.318,19.307,6.504]
[1693840355631,44.92438059,19.332,19.307,6.504]
[1693840355632,1.57899077,19.322,19.308,55.0]
[1693840355928,1.57899077,19.324,19.312,0.807]
[1693840356129,8.074,19.321,19.311,0.807]
[1693840356730,8.074,19.321,19.31,0.807]
[1693840356930,8.074,19.321,19.305,5.697]
[1693840357122,0.54992642,19.32,19.306,55.808]
[1693840357323,26.63692642,19.32,19.306,55.808]
[1693840357527,0.54992642,19.32,19.306,61.505]
[1693840357831,0.96094488,19.325,19.306,61.505]
[1693840358028,8.073,19.323,19.306,61.505]
[1693840358223,1.26635718,19.322,19.306,61.505]
[1693840358420,8.073,19.323,19.306,61.505]
[1693840359132,33.78332937,19.323,19.306,6.505]
[1693840359438,8.075,19.319,19.306,0.808]
[1693840360249,8.074,19.32,19.306,0.808]
[1693840360632,1.07082384,19.325,19.306,0.808]
[1693840360836,8.073,19.323,19.306,0.808]
[1693840361019,1.07082384,19.322,19.306,0.808]
[1693840361215,9.14382384,19.322,19.306,0.808]
[1693840361420,1.07082384,19.322,19.306,0.808]
[1693840361635,1.07082384,19.322,19.306,55.808]
[1693840362137,8.073,19.322,19.306,55.808]
[1693840362934,25.71032937,19.327,19.306,55.808]
[1693840363127,0.71041998,19.326,19.306,55.808]
[1693840363450,0.71041998,19.326,19.306,137.32632937]
[1693840363735,1.36811928,19.328,19.306,137.32632937]
[1693840363940,8.072,19.326,19.306,0.808]
[1693840364144,1.79684658,19.325,19.306,0.808]
[1693840364326,8.073,19.324,19.306,0.808]
[1693840364527,1.79684658,19.323,19.306,0.808]
[1693840364730,8.074,19.321,19.306,0.808]
[1693840365036,9.87084658,19.32,19.306,0.808]
[1693840365231,8.074,19.32,19.306,0.808]
[1693840365941,0.51668171,19.319,19.306,0.808]
[1693840366121,8.59168171,19.319,19.306,0.808]
[1693840366439,52.75157631,19.318,19.303,1.0]
[1693840366641,194.162,19.314,19.303,1.0]
[1693840366940,91.143,19.31,19.303,1.0]
[1693840367133,1.32540181,19.309,19.303,1.0]
[1693840367336,34.182,19.308,19.303,1.0]
[1693840367532,1.32540181,19.307,19.303,1.0]
[1693840367750,8.08,19.306,19.303,1.0]
[1693840369042,33.79032937,19.306,19.273,0.92075043]
[1693840369341,33.79032937,19.306,19.27,28.75]
[1693840369342,28.75,19.3,19.283,0.808]
[1693840369654,8.084,19.298,19.283,0.808]
[1693840370042,34.2,19.298,19.283,0.808]
[1693840370740,34.2,19.298,19.281,0.809]
[1693840370940,8.084,19.298,19.281,3.422]
[1693840371239,8.084,19.298,19.281,29.13232937]
[1693840371933,7.584,19.298,19.281,34.83732937]
[1693840372129,51.696294,19.305,19.282,80.71032937]
[1693840372336,51.696294,19.305,19.288,3.42]
[1693840372529,8.08,19.306,19.289,25.71032937]
[1693840372845,56.966,19.31,19.294,0.808]
[1693840373046,26.096,19.314,19.294,29.13032937]
[1693840373238,8.079,19.31,19.295,25.71032937]
[1693840373541,34.179,19.31,19.297,0.808]
[1693840374042,56.953,19.314,19.297,0.808]
[1693840374043,56.953,19.314,19.297,6.508]
[1693840374245,8.077,19.313,19.298,55.0]
[1693840374448,8.077,19.313,19.302,0.808]
[1693840374948,65.033,19.313,19.302,0.808]
[1693840375337,65.033,19.313,19.301,2.611]
[1693840375338,0.56120479,19.312,19.301,0.808]
[1693840375644,34.181,19.309,19.301,0.808]
[1693840375847,56.966,19.319,19.301,0.808]
[1693840375848,103.013,19.318,19.301,0.808]
[1693840376143,8.077,19.313,19.301,0.808]
[1693840376453,28.75,19.31,19.294,0.808]
[1693840376647,34.186,19.306,19.298,0.808]
[1693840377243,75.18565037,19.31,19.298,0.808]
[1693840377453,28.079,19.309,19.298,0.808]
[1693840377646,0.63493926,19.308,19.298,0.808]
[1693840377849,8.078,19.312,19.298,0.808]
[1693840378046,0.51696734,19.311,19.298,0.808]
[1693840378241,1.23070088,19.319,19.298,26.51832937]
[1693840378443,8.077,19.313,19.299,55.0]
[1693840378735,8.077,19.313,19.303,3.418]
[1693840379042,8.077,19.313,19.303,0.808]
[1693840380440,56.946,19.317,19.303,0.808]
[1693840380762,8.077,19.313,19.303,0.808]
[1693840382256,0.53002319,19.312,19.303,0.808]
[1693840382455,8.078,19.31,19.303,0.808]
[1693840382956,8.078,19.31,19.303,55.808]
[1693840383657,8.078,19.311,19.303,55.808]
[1693840384560,65.04,19.311,19.3,2.611]
[1693840384755,65.04,19.311,19.302,0.808]
[1693840384939,8.078,19.311,19.302,0.808]
[1693840385545,56.947,19.317,19.302,0.808]
[1693840385755,34.173,19.313,19.302,0.808]
[1693840387865,8.077,19.313,19.302,0.808]
[1693840388360,8.075,19.318,19.302,0.808]
[1693840389147,0.76556081,19.317,19.302,0.808]
[1693840389364,8.077,19.314,19.302,0.808]
[1693840389956,111.111,19.314,19.302,0.808]
[1693840390273,34.178,19.31,19.302,0.808]
[1693840390562,62.928,19.31,19.292,20.718802]
[1693840390759,20.64186138,19.309,19.297,0.808]
[1693840390959,8.08,19.306,19.297,0.808]
[1693840392151,8.08,19.306,19.291,5.701]
[1693840392355,8.08,19.306,19.296,0.808]
[1693840392570,8.08,19.306,19.294,0.808]
[1693840396364,8.08,19.306,19.294,6.509]
[1693840396564,8.08,19.306,19.295,55.0]
[1693840396761,8.08,19.306,19.295,55.808]
[1693840396972,8.08,19.306,19.295,0.808]
[1693840397164,8.08,19.306,19.294,55.0]
[1693840397366,8.08,19.306,19.292,0.808]
[1693840397563,8.08,19.306,19.287,10.317]
[1693840397782,8.08,19.306,19.292,0.808]
[1693840399274,8.08,19.306,19.292,55.808]
[1693840399775,0.892339,19.306,19.292,55.808]
[1693840400072,0.892339,19.306,19.293,20.0]
[1693840400377,169.025339,19.306,19.293,25.71032937]
[1693840400580,28.75,19.3,19.293,25.71032937]
[1693840400761,194.32,19.298,19.286,0.808]
[1693840400956,194.32,19.298,19.283,8.317]
[1693840401177,194.32,19.298,19.286,0.808]
[1693840401472,91.2,19.298,19.286,0.808]
[1693840402071,91.2,19.298,19.275,20.736687]
[1693840402072,194.319,19.298,19.275,20.736687]
[1693840402275,194.319,19.298,19.28,5.705]
[1693840402475,220.02932937,19.298,19.282,0.809]
[1693840402780,25.71032937,19.297,19.282,0.809]
[1693840403076,34.21,19.293,19.282,0.809]
[1693840404365,8.085,19.294,19.282,6.513]
[1693840404573,8.085,19.295,19.282,6.513]
[1693840405168,111.22,19.295,19.282,6.513]
[1693840406775,153.0273,19.299,19.282,6.513]
[1693840407083,8.085,19.295,19.282,6.513]
[1693840407578,8.084,19.298,19.283,55.0]
[1693840407783,8.082,19.302,19.287,19.441]
[1693840407983,8.081,19.304,19.288,55.0]
[1693840408273,0.892339,19.306,19.292,19.435]
[1693840408474,0.892339,19.306,19.296,9.119]
[1693840408674,0.892339,19.306,19.299,3.419]
[1693840408886,0.892339,19.306,19.299,58.419]
[1693840409173,8.972339,19.306,19.299,0.808]
[1693840409667,0.892339,19.306,19.299,0.808]
[1693840409990,0.892339,19.306,19.299,6.507]
[1693840410278,8.08,19.305,19.299,0.808]
[1693840410476,0.892339,19.306,19.299,0.808]
[1693840410672,0.892339,19.306,19.299,55.808]
[1693840411271,8.08,19.305,19.299,55.808]
[1693840413279,8.08,19.305,19.298,55.0]
[1693840413476,8.08,19.305,19.299,0.808]
[1693840414878,33.79032937,19.305,19.292,0.808]
[1693840415082,25.71032937,19.304,19.288,5.702]
[1693840415276,8.083,19.3,19.292,0.808]
[1693840415466,8.083,19.3,19.291,0.808]
[1693840415662,8.083,19.3,19.289,2.612]
[1693840415663,122.637,19.3,19.289,0.808]
[1693840415869,148.34732937,19.3,19.283,5.704]
[1693840416072,20.0,19.299,19.283,5.704]
[1693840416271,34.206,19.295,19.288,0.808]
[1693840416773,91.215,19.295,19.287,0.808]
[1693840417184,91.215,19.295,19.283,5.704]
[1693840417391,91.215,19.295,19.283,0.809]
[1693840417680,57.56,19.29,19.272,10.325]
[1693840417982,92.9882,19.294,19.272,10.325]
[1693840417983,91.257,19.286,19.276,0.809]
[1693840418181,8.088,19.286,19.276,0.809]
[1693840419173,168.307,19.286,19.273,5.707]
[1693840419373,168.307,19.286,19.276,0.809]
[1693840419374,8.088,19.286,19.276,0.809]
[1693840420270,8.088,19.286,19.271,10.326]
[1693840420469,8.088,19.286,19.271,0.809]
[1693840422987,8.088,19.286,19.271,55.809]
[1693840423379,28.84,19.3,19.277,19.451]
[1693840423572,101.0732,19.294,19.277,19.451]
[1693840423775,101.0732,19.294,19.278,55.0]
[1693840423988,8.085,19.294,19.282,9.126]
[1693840424182,8.085,19.294,19.283,55.0]
[1693840424486,8.085,19.294,19.286,0.808]
[1693840424685,8.085,19.294,19.284,2.613]
[1693840424894,8.085,19.294,19.285,0.808]
[1693840425090,8.085,19.294,19.28,5.705]
[1693840425390,8.085,19.294,19.282,0.809]
[1693840425592,8.085,19.294,19.278,2.614]
[1693840425892,28.84,19.29,19.275,25.710329]
[1693840426187,194.444,19.286,19.275,26.519329]
[1693840426496,194.444,19.286,19.275,0.809]
[1693840427893,194.444,19.286,19.273,0.809]
[1693840428892,194.444,19.286,19.273,6.516]
[1693840429089,194.444,19.286,19.273,0.809]
[1693840429281,194.444,19.286,19.273,16.841]
[1693840429282,34.221,19.286,19.273,16.841]
[1693840429589,34.221,19.286,19.274,55.0]
[1693840429893,91.257,19.286,19.277,0.809]
[1693840430077,91.257,19.286,19.276,0.809]
[1693840430879,91.257,19.286,19.276,55.809]
[1693840432194,8.088,19.286,19.276,0.809]
[1693840432893,168.307,19.286,19.27,2.615]
[1693840433187,168.307,19.286,19.273,0.809]
[1693840433390,65.124,19.286,19.273,0.809]
[1693840433975,65.124,19.286,19.273,55.809]
[1693840434477,65.124,19.286,19.273,0.809]
[1693840435997,65.124,19.286,19.273,55.809]
[1693840436178,8.088,19.286,19.273,55.809]
[1693840437196,28.84,19.3,19.273,55.809]
[1693840437402,28.84,19.3,19.274,20.0]
[1693840437403,57.008,19.296,19.274,20.0]
[1693840437693,26.121,19.295,19.279,19.449]
[1693840437876,8.085,19.293,19.283,0.808]
[1693840438278,106.7169,19.293,19.283,0.808]
[1693840438894,98.6319,19.293,19.283,55.808]
[1693840439400,8.085,19.295,19.283,55.808]
[1693840439603,8.084,19.298,19.283,55.808]
[1693840439903,8.083,19.3,19.283,55.808]
[1693840440080,34.2,19.298,19.283,25.71032937]
[1693840440389,25.71032937,19.297,19.283,0.809]
[1693840440580,91.224,19.293,19.278,5.705]
[1693840440782,8.088,19.288,19.28,0.809]
[1693840441096,8.088,19.288,19.279,0.809]
[1693840441394,8.088,19.288,19.279,55.809]
[1693840442601,8.088,19.288,19.279,61.514]
[1693840442908,8.087,19.289,19.279,61.514]
[1693840443278,90.5459,19.292,19.279,61.514]
[1693840443689,8.087,19.29,19.279,61.514]
[1693840444988,8.086,19.291,19.279,61.514]
[1693840447500,8.085,19.294,19.279,61.514]
[1693840447800,26.12,19.296,19.279,61.514]
[1693840448394,8.085,19.294,19.279,61.514]
[1693840449889,8.085,19.294,19.279,6.514]
[1693840450085,91.219,19.294,19.279,0.809]
[1693840452101,91.219,19.294,19.27,10.326]
[1693840452304,57.61,19.29,19.272,5.707]
[1693840452605,8.089,19.285,19.276,0.809]
[1693840453206,34.223,19.285,19.276,0.809]
[1693840453595,8.089,19.285,19.276,0.809]
[1693840454703,65.128,19.285,19.27,5.708]
[1693840455006,65.128,19.285,19.27,0.809]
[1693840455203,65.128,19.285,19.27,9.132]
[1693840455705,8.089,19.285,19.27,9.132]
[1693840455908,8.089,19.285,19.27,19.458]
[1693840456391,8.089,19.285,19.275,0.809]
[1693840456805,8.089,19.285,19.275,55.809]
[1693840457415,65.128,19.285,19.275,55.0]
[1693840457995,65.128,19.285,19.275,55.809]
[1693840458196,65.128,19.285,19.275,55.0]
[1693840458411,65.128,19.285,19.275,55.809]
[1693840458594,65.128,19.285,19.275,55.0]
[1693840459107,65.128,19.285,19.272,0.809]
[1693840459501,8.089,19.285,19.272,6.516]
[1693840459693,93.0169,19.289,19.272,6.516]
[1693840459894,8.088,19.287,19.272,6.516]
[1693840460310,8.088,19.287,19.272,32.22632937]
[1693840460695,8.088,19.287,19.273,55.0]
[1693840460898,8.088,19.287,19.277,0.809]
[1693840461406,93.0169,19.289,19.277,0.809]
[1693840461600,8.088,19.288,19.277,0.809]
[1693840461795,8.087,19.289,19.277,55.809]
[1693840462106,8.086,19.291,19.277,55.809]
[1693840463616,8.085,19.293,19.277,55.809]
[1693840466904,91.6967,19.299,19.277,55.809]
[1693840467105,8.084,19.296,19.277,81.51932937]
[1693840469406,8.084,19.296,19.278,25.71032937]
[1693840469718,8.084,19.296,19.283,3.421]
[1693840469902,8.084,19.296,19.283,58.421]
[1693840470305,8.084,19.296,19.278,25.71032937]
[1693840470501,8.084,19.296,19.272,25.71032937]
[1693840470715,8.084,19.296,19.274,20.0]
[1693840471418,8.084,19.296,19.273,20.0]
[1693840472010,8.084,19.296,19.274,55.0]
[1693840472319,8.084,19.296,19.275,20.0]
[1693840472933,8.084,19.296,19.271,42.31120331]
[1693840472934,8.084,19.296,19.272,20.0]
[1693840473720,8.084,19.296,19.271,20.0]
[1693840473924,8.084,19.296,19.272,55.0]
[1693840474111,8.084,19.296,19.273,20.0]
[1693840474309,8.084,19.296,19.274,55.0]
[1693840474819,8.084,19.296,19.275,20.0]
[1693840475120,8.084,19.296,19.276,55.0]
[1693840475809,243.858,19.297,19.276,55.0]
[1693840475810,91.257,19.286,19.276,55.0]
[1693840476908,57.61,19.297,19.276,55.0]
[1693840477114,8.087,19.288,19.276,55.0]
[1693840478711,65.117,19.288,19.276,55.0]
[1693840479422,8.087,19.288,19.276,55.0]
[1693840480505,65.117,19.288,19.269,25.71032937]
[1693840480729,65.117,19.288,19.262,41.8289269]
[1693840480914,65.117,19.288,19.263,20.69515465]
[1693840481228,65.117,19.288,19.263,20.0]
[1693840481416,65.117,19.288,19.262,69.785508]
[1693840481626,57.61,19.28,19.261,25.71032937]
[1693840481922,194.557,19.275,19.255,49.78550805]
[1693840482117,194.557,19.275,19.254,48.58385637]
[1693840482118,194.557,19.275,19.253,75.49583737]
[1693840482815,194.557,19.275,19.254,20.0]
[1693840483013,194.557,19.275,19.254,45.21032937]
[1693840483214,194.557,19.275,19.255,55.0]
[1693840483425,194.557,19.275,19.254,45.21032937]
[1693840484827,194.557,19.275,19.255,25.71032937]
[1693840485633,194.557,19.275,19.258,0.81]
[1693840486020,194.557,19.275,19.258,55.81]
[1693840486221,91.311,19.275,19.259,25.71032937]
[1693840486421,91.311,19.275,19.262,0.809]
[1693840486731,34.241,19.275,19.262,0.809]
[1693840487032,34.241,19.275,19.262,55.809]
[1693840487624,91.309,19.275,19.262,55.809]
[1693840488924,8.093,19.275,19.262,61.519]
[1693840491014,8.093,19.275,19.262,6.519]
[1693840491944,8.093,19.275,19.262,0.809]
[1693840492116,65.161,19.275,19.262,0.809]
[1693840492519,65.161,19.275,19.262,55.809]
[1693840492824,65.161,19.275,19.262,0.809]
[1693840493736,8.093,19.275,19.262,0.809]
[1693840494235,8.093,19.275,19.262,55.809]
[1693840497941,8.091,19.279,19.262,55.809]
[1693840498235,26.139,19.281,19.262,55.809]
[1693840498236,8.091,19.28,19.268,9.132]
[1693840498421,8.091,19.28,19.269,55.0]
[1693840498621,8.091,19.28,19.271,0.809]
[1693840498921,8.091,19.28,19.269,55.0]
[1693840499117,8.091,19.28,19.269,55.809]
[1693840499525,8.091,19.28,19.269,0.809]
[1693840501649,8.091,19.28,19.266,2.615]
[1693840501940,8.091,19.28,19.267,0.809]
[1693840502126,8.091,19.28,19.266,0.809]
[1693840502321,8.091,19.28,19.265,0.809]
[1693840502539,8.091,19.28,19.264,0.809]
[1693840504226,8.091,19.28,19.264,6.519]
[1693840505145,8.091,19.28,19.266,0.809]
[1693840506532,8.091,19.28,19.265,55.809]
[1693840506837,8.091,19.28,19.265,55.0]
[1693840507144,8.091,19.28,19.263,2.616]
[1693840507344,8.091,19.28,19.265,0.809]
[1693840507933,42.731,19.28,19.265,0.809]
[1693840508251,42.731,19.28,19.264,0.809]
[1693840508426,42.731,19.28,19.263,2.616]
[1693840508629,42.731,19.28,19.265,0.809]
[1693840510362,42.731,19.28,19.265,6.518]
[1693840510533,42.731,19.28,19.266,55.0]
[1693840510736,42.731,19.28,19.269,0.809]
[1693840511543,42.731,19.28,19.266,55.0]
[1693840511745,42.731,19.28,19.266,55.809]
[1693840512852,42.731,19.28,19.266,55.0]
[1693840513258,42.731,19.28,19.266,55.809]
[1693840514537,42.731,19.28,19.266,61.518]
[1693840515451,42.731,19.28,19.266,55.809]
[1693840516656,42.731,19.28,19.266,0.809]
[1693840517235,61.518,19.284,19.266,6.518]
[1693840517448,132.17610467,19.285,19.267,56.03397512]
[1693840517449,90.9431,19.285,19.267,56.03397512]
[1693840517755,60.35032937,19.29,19.272,19.456]
[1693840517756,42.727,19.29,19.272,19.456]
[1693840517946,42.727,19.29,19.273,55.0]
[1693840518253,42.727,19.29,19.278,3.423]
[1693840518452,42.727,19.29,19.278,58.423]
[1693840518758,42.727,19.29,19.278,55.0]
[1693840519150,42.727,19.29,19.278,55.809]
[1693840519451,42.727,19.29,19.279,55.0]
[1693840519649,42.727,19.29,19.281,0.809]
[1693840520355,144.0649552,19.296,19.281,0.809]
[1693840520356,98.9996,19.293,19.281,0.809]
[1693840520654,98.9996,19.293,19.281,55.809]
[1693840521164,26.115,19.299,19.281,55.809]
[1693840521449,8.082,19.302,19.282,1.6383953]
[1693840521636,8.081,19.304,19.288,19.441]
[1693840521837,2.25897086,19.306,19.289,55.0]
[1693840521838,28.36497086,19.306,19.289,55.0]
[1693840522044,8.081,19.303,19.294,0.808]
[1693840522241,0.892339,19.306,19.294,0.808]
[1693840522542,8.081,19.303,19.294,0.808]
[1693840523560,0.892339,19.306,19.294,0.808]
[1693840523738,0.892339,19.306,19.294,55.808]
[1693840523739,1.82163512,19.306,19.294,55.808]
[1693840523939,0.892339,19.306,19.298,9.118]
[1693840524134,0.892339,19.306,19.301,0.808]
[1693840525386,0.892339,19.306,19.299,55.0]
[1693840525563,0.892339,19.306,19.301,0.808]
[1693840526234,0.892339,19.306,19.301,11.118]
[1693840526435,2.92706536,19.317,19.303,10.08126375]
[1693840526658,2.92706536,19.317,19.304,20.0]
[1693840526951,26.08,19.325,19.308,0.96526375]
[1693840527153,8.074,19.321,19.313,0.807]
[1693840527949,8.074,19.321,19.311,0.807]
[1693840528154,0.72886569,19.32,19.311,0.807]
[1693840528356,0.72886569,19.32,19.307,8.307]
[1693840528357,34.165,19.318,19.308,0.50463337]
[1693840528548,34.165,19.318,19.305,0.808]
[1693840528549,1.48658485,19.317,19.305,0.808]
[1693840528739,1.48658485,19.317,19.299,5.699]
[1693840528740,34.173,19.313,19.303,0.808]
[1693840528942,8.077,19.313,19.303,2.61]
[1693840529139,8.077,19.313,19.303,9.116]
[1693840529864,8.077,19.314,19.303,9.116]
[1693840530063,82.63932937,19.323,19.304,55.0]
[1693840530353,8.074,19.319,19.309,3.417]
[1693840530657,96.7061,19.321,19.309,3.417]
[1693840530658,104.7801,19.321,19.309,3.417]
[1693840530956,8.072,19.324,19.309,58.417]
[1693840531164,8.071,19.327,19.31,0.96526375]
[1693840531346,8.76819978,19.326,19.315,9.111]
[1693840531547,8.072,19.326,19.316,55.0]
[1693840531747,26.073,19.33,19.319,0.807]
[1693840532044,199.6341,19.334,19.319,0.807]
[1693840532045,1.31200458,19.333,19.319,0.807]
[1693840532444,8.07,19.329,19.319,0.807]
[1693840532644,8.07,19.33,19.319,0.807]
[1693840532879,0.74421146,19.332,19.319,0.807]
[1693840533163,0.74421146,19.333,19.319,0.807]
[1693840533347,8.07,19.331,19.319,0.807]
[1693840535048,8.069,19.332,19.319,11.107]
[1693840535369,8.068,19.334,19.324,3.415]
[1693840535666,8.068,19.334,19.324,58.415]
[1693840536268,8.068,19.334,19.324,55.807]
[1693840536766,8.068,19.334,19.324,55.0]
[1693840536966,8.068,19.334,19.325,3.415]
[1693840537267,8.068,19.334,19.325,58.415]
[1693840537652,8.068,19.334,19.325,3.415]
[1693840537962,8.068,19.334,19.325,0.807]
[1693840539058,0.63989807,19.333,19.325,0.807]
[1693840539268,9.74168105,19.336,19.325,0.807]
[1693840539467,57.47,19.34,19.325,0.807]
[1693840539468,26.063,19.338,19.325,0.807]
[1693840539656,8.068,19.335,19.325,0.807]
[1693840540653,8.066,19.339,19.325,0.807]
[1693840540852,8.065,19.341,19.325,0.807]
[1693840541268,8.065,19.341,19.325,26.51732937]
[1693840541473,8.065,19.341,19.326,75.0]
[1693840541771,8.065,19.341,19.33,9.104]
[1693840541973,8.065,19.341,19.334,0.806]
[1693840542156,8.064,19.344,19.334,0.806]
[1693840542360,57.47,19.35,19.334,0.806]
[1693840542361,8.065,19.341,19.334,0.806]
[1693840543162,64.938,19.341,19.331,55.0]
[1693840543464,64.938,19.341,19.331,55.806]
[1693840543663,8.065,19.341,19.331,6.496]
[1693840543862,8.065,19.341,19.334,0.806]
[1693840545568,57.47,19.36,19.334,0.806]
[1693840545569,114.94,19.36,19.334,6.495]
[1693840545756,8.063,19.348,19.335,55.0]
[1693840546067,90.965,19.348,19.338,3.412]